bitfinex-derivatives/quotes_BTCF0:USTF0_20250703
["timestamp","ask_amount","ask_price","bid_price","bid_amount"]
[1751526921790,2.38787497,109280.0,109270.0,0.22255602]
[1751526924895,1.89019533,109280.0,109270.0,0.22255602]
[1751526925195,2.38787497,109280.0,109270.0,0.22255602]
[1751526933204,2.32237497,109280.0,109270.0,0.18955602]
[1751526933802,2.32237497,109280.0,109270.0,0.00658262]
[1751526933999,2.66741479,109280.0,109270.0,0.00658262]
[1751526937403,2.67662221,109280.0,109270.0,0.00658262]
[1751526947908,1.93010275,109280.0,109270.0,0.00658262]
[1751526948100,2.42778239,109280.0,109270.0,0.00658262]
[1751526950903,1.58970239,109280.0,109270.0,0.00658262]
[1751526951111,2.91114221,109280.0,109270.0,0.00658262]
[1751526951412,1.83854221,109280.0,109270.0,0.00658262]
[1751526951603,2.66230239,109280.0,109270.0,0.00658262]
[1751526953614,2.91114221,109280.0,109270.0,0.00658262]
[1751526958917,0.1830069,109250.0,109240.0,0.0317]
[1751526959111,2.12967936,109250.0,109240.0,0.0317]
[1751526959317,2.16227936,109250.0,109240.0,0.0317]
[1751526959519,2.16227936,109250.0,109240.0,0.0638]
[1751526960214,2.16227936,109250.0,109230.0,0.05244745]
[1751526960412,1.04150324,109240.0,109230.0,0.29928785]
[1751526960913,1.04150324,109240.0,109230.0,0.11624745]
[1751526961114,1.07290324,109240.0,109230.0,0.09999364]
[1751526961314,1.91178324,109240.0,109230.0,0.06929364]
[1751526961513,1.94228324,109240.0,109230.0,0.06929364]
[1751526962019,1.94728324,109240.0,109230.0,0.06929364]
[1751526962220,1.95028324,109240.0,109230.0,0.06929364]
[1751526964519,2.19912306,109240.0,109230.0,0.00549364]
[1751526965020,1.95028324,109240.0,109230.0,0.00549364]
[1751526965416,1.95028324,109240.0,109230.0,0.03569364]
[1751526965616,0.5518236,109240.0,109230.0,0.21873404]
[1751526965817,0.80066342,109240.0,109230.0,0.53077386]
[1751526966122,0.5518236,109240.0,109230.0,0.53077386]
[1751526966321,0.80066342,109240.0,109230.0,0.53077386]
[1751526967819,0.5518236,109240.0,109230.0,0.28193404]
[1751526971021,0.5518236,109240.0,109230.0,0.53088943]
[1751526972326,0.5518236,109240.0,109230.0,0.28193404]
[1751526975526,0.5518236,109240.0,109230.0,0.54773884]
[1751526976926,0.5518236,109240.0,109230.0,0.29878345]
[1751526977127,0.5518236,109240.0,109230.0,0.54773884]
[1751526977928,0.008,109240.0,109230.0,0.54773884]
[1751526978222,0.1910236,109240.0,109230.0,0.54773884]
[1751526978526,0.008,109240.0,109230.0,1.34162684]
[1751526979824,0.008,109240.0,109230.0,2.17998684]
[1751526980230,0.008,109240.0,109230.0,1.92998684]
[1751526981329,0.008,109240.0,109230.0,1.74689884]
[1751526981530,0.008,109240.0,109230.0,1.92998684]
[1751526984939,0.008,109240.0,109230.0,1.74689884]
[1751526985138,0.008,109240.0,109230.0,1.92998684]
[1751526986240,0.008,109240.0,109230.0,1.74689884]
[1751526986541,0.008,109240.0,109230.0,1.92998684]
[1751526987035,0.008,109240.0,109230.0,1.56918684]
[1751526987241,0.008,109240.0,109230.0,1.92998684]
[1751526990648,0.008,109240.0,109230.0,1.74689884]
[1751526991649,0.008,109240.0,109230.0,1.92998684]
[1751526992748,0.008,109240.0,109230.0,1.74689884]
[1751526992949,0.008,109240.0,109230.0,1.92998684]
[1751526994551,0.008,109240.0,109230.0,1.74689884]
[1751526994751,0.008,109240.0,109230.0,1.92998684]
[1751526995653,0.008,109240.0,109230.0,1.74689884]
[1751526995856,0.008,109240.0,109230.0,1.74683346]
[1751527000559,0.008,109240.0,109230.0,1.99572347]
[1751527003462,0.4253,109250.0,109240.0,0.1830236]
[1751527003658,0.6083069,109250.0,109240.0,0.71190362]
[1751527004563,0.6153069,109250.0,109240.0,0.71190362]
[1751527006064,0.6183069,109250.0,109240.0,0.71190362]
[1751527013263,0.6183069,109250.0,109240.0,0.74260362]
[1751527015570,0.4353,109250.0,109240.0,0.74260362]
[1751527018464,0.4353,109250.0,109240.0,0.74266361]
[1751527021872,0.6183063,109250.0,109240.0,0.74266361]
[1751527022073,0.4353,109250.0,109240.0,0.74266361]
[1751527024480,0.6183063,109250.0,109240.0,0.74266361]
[1751527025377,0.4353,109250.0,109240.0,0.74266361]
[1751527025578,0.0745,109250.0,109240.0,0.74266361]
[1751527027281,0.0415,109250.0,109240.0,0.74266361]
[1751527027474,0.82499261,109260.0,109250.0,0.1830063]
[1751527027675,0.85589261,109260.0,109250.0,0.46379631]
[1751527028680,0.86089261,109260.0,109250.0,0.46379631]
[1751527028881,0.89119261,109260.0,109250.0,0.46379631]
[1751527029082,0.6423026,109260.0,109250.0,0.46379631]
[1751527029478,0.89119261,109260.0,109250.0,0.2149063]
[1751527029682,0.89119261,109260.0,109250.0,0.46379631]
[1751527030083,0.89319261,109260.0,109250.0,0.46479631]
[1751527030277,0.89319261,109260.0,109250.0,0.4648563]
[1751527031582,0.6443026,109260.0,109250.0,0.4648563]
[1751527031777,0.89319261,109260.0,109250.0,0.4648563]
[1751527031983,0.6139895,109260.0,109250.0,0.47978051]
[1751527032285,0.431,109260.0,109250.0,0.51018051]
[1751527033087,0.431,109260.0,109250.0,1.34798051]
[1751527034084,0.6139895,109260.0,109250.0,1.34798051]
[1751527035086,0.431,109260.0,109250.0,1.34798051]
[1751527035286,0.6139896,109260.0,109250.0,1.34798051]
[1751527035887,0.3987,109260.0,109250.0,1.34798051]
[1751527036087,0.5816896,109260.0,109250.0,1.37818051]
[1751527036586,0.3987,109260.0,109250.0,1.37818051]
[1751527037080,0.5816896,109260.0,109250.0,1.37818051]
[1751527037884,0.5816896,109260.0,109250.0,1.1292905]
[1751527038190,0.5816896,109260.0,109250.0,1.37818051]
[1751527038983,0.5816896,109260.0,109250.0,1.1292905]
[1751527039490,0.5816896,109260.0,109250.0,1.37818051]
[1751527039786,0.6118896,109260.0,109250.0,1.37818051]
[1751527041191,0.6118896,109260.0,109250.0,1.1292905]
[1751527041388,0.6118896,109260.0,109250.0,1.37818051]
[1751527046496,0.86077961,109260.0,109250.0,1.37818051]
[1751527047700,0.86077961,109260.0,109250.0,0.51018051]
[1751527047993,0.86077961,109260.0,109250.0,1.34774051]
[1751527048794,0.86077961,109260.0,109250.0,1.0988505]
[1751527049095,0.6118896,109260.0,109250.0,1.34774051]
[1751527049499,0.86077961,109260.0,109250.0,1.34774051]
[1751527051091,0.86077961,109260.0,109250.0,1.31734051]
[1751527051597,0.86077961,109260.0,109250.0,0.47978051]
[1751527051795,0.86077961,109260.0,109250.0,1.31730051]
[1751527058402,1.10966962,109260.0,109250.0,0.0159842]
[1751527058703,1.14286962,109260.0,109250.0,0.1989905]
[1751527058999,1.14286962,109260.0,109250.0,0.0159842]
[1751527062306,0.6450896,109260.0,109250.0,0.0159842]
[1751527062604,1.14286962,109260.0,109250.0,0.0159842]
[1751527069511,1.50366962,109260.0,109250.0,0.0159842]
[1751527070512,2.34106962,109260.0,109250.0,0.0159842]
[1751527082919,2.58995963,109260.0,109250.0,0.0159842]
[1751527085521,2.34106962,109260.0,109250.0,0.0159842]
[1751527085721,2.58995963,109260.0,109250.0,0.0159842]
[1751527086021,2.58995963,109260.0,109250.0,0.00105999]
[1751527087116,0.1830225,109240.0,109230.0,0.00549364]
[1751527087416,2.25643058,109240.0,109230.0,0.00549364]
[1751527087620,2.35123058,109240.0,109230.0,0.00549364]
[1751527088324,2.35223058,109240.0,109230.0,0.00549364]
[1751527090224,2.35223058,109240.0,109230.0,0.00555363]
[1751527090727,1.85445056,109240.0,109230.0,0.00755363]
[1751527090928,2.35323058,109240.0,109230.0,0.00755363]
[1751527094432,1.85545056,109240.0,109230.0,0.00755363]
[1751527094736,2.35323058,109240.0,109230.0,0.00755363]
[1751527097734,2.60212059,109240.0,109230.0,0.00755363]
[1751527100536,0.183055,109220.0,109210.0,0.064]
[1751527100728,0.183055,109220.0,109210.0,0.0954]
[1751527100729,1.04163502,109220.0,109210.0,0.0954]
[1751527100929,1.07353502,109220.0,109210.0,0.2784718]
[1751527101732,1.07353502,109220.0,109210.0,0.2844718]
[1751527101937,1.07453502,109220.0,109210.0,0.2844718]
[1751527102935,1.07553502,109220.0,109210.0,0.2874718]
[1751527103331,0.577755,109220.0,109210.0,0.2874718]
[1751527103536,1.07553502,109220.0,109210.0,0.28753179]
[1751527105441,1.14825388,109220.0,109210.0,0.10445999]
[1751527110238,1.18145388,109220.0,109210.0,0.10445999]
[1751527113137,1.14825388,109220.0,109210.0,0.10445999]
[1751527120843,1.14825388,109220.0,109210.0,0.28753179]
[1751527121049,0.65047386,109220.0,109210.0,0.28753179]
[1751527121444,1.14825388,109220.0,109210.0,0.28753179]
[1751527122143,1.14825388,109220.0,109210.0,0.10445999]
[1751527122348,1.18155388,109220.0,109210.0,0.10445999]
[1751527123648,1.18155388,109220.0,109210.0,0.28753179]
[1751527125448,1.18155388,109220.0,109210.0,0.25653179]
[1751527126341,0.82075388,109220.0,109210.0,0.25653179]
[1751527126545,1.18155388,109220.0,109210.0,0.25653179]
[1751527127346,0.68377386,109220.0,109210.0,0.25653179]
[1751527127550,1.18155388,109220.0,109210.0,0.25653179]
[1751527128453,1.14825388,109220.0,109210.0,0.5054218]
[1751527128751,0.25777386,109220.0,109210.0,0.5054218]
[1751527128951,0.50666387,109220.0,109210.0,0.5357218]
[1751527129251,0.25777386,109220.0,109210.0,0.5357218]
[1751527129653,0.50666387,109220.0,109210.0,0.5357218]
[1751527131759,0.86746387,109220.0,109210.0,0.5357218]
[1751527134057,0.61857386,109220.0,109210.0,0.5357218]
[1751527134259,0.86746387,109220.0,109210.0,0.5357218]
[1751527135254,0.86746387,109220.0,109210.0,0.28683179]
[1751527135459,0.86746387,109220.0,109210.0,0.5357218]
[1751527136662,0.61857386,109220.0,109210.0,0.5357218]
[1751527136858,0.86746387,109220.0,109210.0,0.5357218]
[1751527139373,0.86746387,109220.0,109210.0,0.28683179]
[1751527139567,0.86746387,109220.0,109210.0,0.5357218]
[1751527143074,0.86746387,109220.0,109210.0,0.28683179]
[1751527143275,0.86746387,109220.0,109210.0,0.5357218]
[1751527147078,0.61857386,109220.0,109210.0,0.5357218]
[1751527147271,0.86746387,109220.0,109210.0,0.5357218]
[1751527148075,0.86746387,109220.0,109210.0,0.28683179]
[1751527148276,0.86746387,109220.0,109210.0,0.5357218]
[1751527148676,0.86746387,109220.0,109210.0,0.28683179]
[1751527148877,0.86746387,109220.0,109210.0,0.5357218]
[1751527154282,0.61857386,109220.0,109210.0,0.5357218]
[1751527154473,0.86746387,109220.0,109210.0,0.5357218]
[1751527155681,0.86746387,109220.0,109210.0,0.28683179]
[1751527155882,0.89886387,109220.0,109210.0,0.5357218]
[1751527157980,0.89886387,109220.0,109210.0,0.28683179]
[1751527158180,0.89886387,109220.0,109210.0,0.5357218]
[1751527161480,0.89886387,109220.0,109210.0,0.25653179]
[1751527161684,0.93206387,109220.0,109210.0,0.4724218]
[1751527162685,1.18095388,109220.0,109210.0,0.4724218]
[1751527163682,1.18095388,109220.0,109210.0,0.22353179]
[1751527163880,1.18095388,109220.0,109210.0,0.4724218]
[1751527164081,0.93206387,109220.0,109210.0,0.22353179]
[1751527164280,0.68317386,109220.0,109210.0,0.22353179]
[1751527164486,1.18095388,109220.0,109210.0,0.22353179]
[1751527164684,1.18095388,109220.0,109210.0,0.4724218]
[1751527164986,0.68317386,109220.0,109210.0,0.4724218]
[1751527165188,1.18095388,109220.0,109210.0,0.4724218]
[1751527165786,1.18095388,109220.0,109210.0,0.22353179]
[1751527165986,1.18095388,109220.0,109210.0,0.4724218]
[1751527168687,0.68317386,109220.0,109210.0,0.4724218]
[1751527168894,1.18095388,109220.0,109210.0,0.22353179]
[1751527169187,1.18095388,109220.0,109210.0,0.4724218]
[1751527170394,1.18095388,109220.0,109210.0,0.22353179]
[1751527170586,1.18095388,109220.0,109210.0,0.4724218]
[1751527171290,1.18095388,109220.0,109210.0,0.22353179]
[1751527171486,1.18095388,109220.0,109210.0,0.4724218]
[1751527171682,1.18095388,109220.0,109210.0,0.22353179]
[1751527171989,1.18095388,109220.0,109210.0,0.4724218]
[1751527172189,0.68317386,109220.0,109210.0,0.4724218]
[1751527172392,0.93206387,109220.0,109210.0,0.22353179]
[1751527173393,1.18095388,109220.0,109210.0,0.22353179]
[1751527174196,1.18095388,109220.0,109210.0,0.4724218]
[1751527174996,1.18095388,109220.0,109210.0,0.22353179]
[1751527175398,0.93206387,109220.0,109210.0,0.22353179]
[1751527175594,0.93206387,109220.0,109210.0,0.4724218]
[1751527175897,0.68317386,109220.0,109210.0,0.4724218]
[1751527176199,0.93206387,109220.0,109210.0,0.22353179]
[1751527176398,0.93206387,109220.0,109210.0,0.4724218]
[1751527177900,0.96316387,109220.0,109210.0,0.4724218]
[1751527179000,0.71427386,109220.0,109210.0,0.4724218]
[1751527179195,0.96316387,109220.0,109210.0,0.4724218]
[1751527179394,0.71427386,109220.0,109210.0,0.22353179]
[1751527179595,0.96316387,109220.0,109210.0,0.4724218]
[1751527182201,0.96316387,109220.0,109210.0,0.22353179]
[1751527182502,0.96316387,109220.0,109210.0,0.4724218]
[1751527182904,0.96316387,109220.0,109210.0,0.22353179]
[1751527183099,0.96316387,109220.0,109210.0,0.4724218]
[1751527184806,0.96316387,109220.0,109210.0,0.22353179]
[1751527186398,0.60236387,109220.0,109210.0,0.22353179]
[1751527186599,0.96316387,109220.0,109210.0,0.22353179]
[1751527187805,0.93206387,109220.0,109210.0,0.22353179]
[1751527190004,0.68317386,109220.0,109210.0,0.22353179]
[1751527190205,0.93206387,109220.0,109210.0,0.4724218]
[1751527191005,0.93206387,109220.0,109210.0,0.22353179]
[1751527191205,0.93206387,109220.0,109210.0,0.4724218]
[1751527192910,0.93206387,109220.0,109210.0,0.22353179]
[1751527193105,0.93206387,109220.0,109210.0,0.4724218]
[1751527193907,0.68317386,109220.0,109210.0,0.4724218]
[1751527194109,0.93206387,109220.0,109210.0,0.4724218]
[1751527194603,0.68317386,109220.0,109210.0,0.4724218]
[1751527194997,0.68317386,109220.0,109210.0,0.22353179]
[1751527195202,0.93206387,109220.0,109210.0,0.4724218]
[1751527195603,0.32237376,109220.0,109210.0,0.8332218]
[1751527195806,0.32237376,109220.0,109210.0,0.8653218]
[1751527196003,0.57126377,109220.0,109210.0,0.8653218]
[1751527200402,0.53806377,109220.0,109210.0,0.8653218]
[1751527200607,0.53806377,109220.0,109210.0,0.8972218]
[1751527204416,0.53806377,109220.0,109210.0,0.64833179]
[1751527204611,0.53806377,109220.0,109210.0,0.8972218]
[1751527204807,0.53806377,109220.0,109210.0,0.61643179]
[1751527205009,0.81995378,109220.0,109210.0,0.61643179]
[1751527205205,0.81995378,109220.0,109210.0,0.8653218]
[1751527205618,0.57106377,109220.0,109210.0,0.8653218]
[1751527206125,0.81995378,109220.0,109210.0,0.8653218]
[1751527207117,0.81995378,109220.0,109210.0,0.61643179]
[1751527207419,0.81995378,109220.0,109210.0,0.8653218]
[1751527208418,0.81995378,109220.0,109210.0,0.61643179]
[1751527208613,0.81995378,109220.0,109210.0,0.8653218]
[1751527209113,0.81995378,109220.0,109210.0,0.61643179]
[1751527209317,0.81995378,109220.0,109210.0,0.8653218]
[1751527210117,0.81995378,109220.0,109210.0,0.61643179]
[1751527210417,0.81995378,109220.0,109210.0,0.8653218]
[1751527211417,0.32217376,109220.0,109210.0,0.8653218]
[1751527211621,0.57106377,109220.0,109210.0,0.8653218]
[1751527211921,2.69997179,109220.0,109210.0,0.00905999]
[1751527212314,2.43476178,109220.0,109210.0,0.00905999]
[1751527212519,2.28263378,109220.0,109210.0,0.00905999]
[1751527212820,2.04895378,109220.0,109210.0,0.00905999]
[1751527213517,2.04895378,109220.0,109210.0,0.19213169]
[1751527214019,2.04895378,109220.0,109210.0,0.18913169]
[1751527214416,1.17975378,109220.0,109210.0,0.4320217]
[1751527214615,1.18075378,109220.0,109210.0,0.18513169]
[1751527214811,1.18075378,109220.0,109210.0,0.21783169]
[1751527217124,1.18075378,109220.0,109210.0,0.24833169]
[1751527218014,0.68297376,109220.0,109210.0,0.24833169]
[1751527218219,1.18075378,109220.0,109210.0,0.24833169]
[1751527218418,1.14775378,109220.0,109210.0,0.24833169]
[1751527220425,1.14675378,109220.0,109210.0,0.24833169]
[1751527220626,1.14775378,109220.0,109210.0,0.24933169]
[1751527222723,1.14775378,109220.0,109210.0,0.25033169]
[1751527222921,1.16418964,109220.0,109210.0,0.25033169]
[1751527223230,1.16218964,109220.0,109210.0,0.24633169]
[1751527223428,1.16418964,109220.0,109210.0,0.25033169]
[1751527223729,1.19458964,109220.0,109210.0,0.25033169]
[1751527224439,1.19458964,109220.0,109210.0,0.21983169]
[1751527225736,1.19458964,109220.0,109210.0,0.21683169]
[1751527226039,1.19458964,109220.0,109210.0,0.21783169]
[1751527228742,0.69680962,109220.0,109210.0,0.21783169]
[1751527228935,0.83378964,109220.0,109210.0,0.21783169]
[1751527229135,0.83478964,109220.0,109210.0,0.21783169]
[1751527229334,0.83478964,109220.0,109210.0,0.24843169]
[1751527231044,0.33700962,109220.0,109210.0,0.24843169]
[1751527231244,0.80438964,109220.0,109210.0,0.24843169]
[1751527231644,0.80438964,109220.0,109210.0,0.27843169]
[1751527232239,0.30660962,109220.0,109210.0,0.27843169]
[1751527232445,0.83438964,109220.0,109210.0,0.27843169]
[1751527233044,0.76167078,109220.0,109210.0,0.27843169]
[1751527233547,0.76167078,109220.0,109210.0,0.5273217]
[1751527233548,0.28329001,109220.0,109210.0,0.5273217]
[1751527233749,0.71523492,109220.0,109210.0,0.5273217]
[1751527234148,0.46634491,109220.0,109210.0,0.5273217]
[1751527234348,0.71523492,109220.0,109210.0,0.5273217]
[1751527234545,0.71523492,109220.0,109210.0,0.27843169]
[1751527235244,0.0344,109220.0,109210.0,0.5273217]
[1751527235451,0.43494491,109220.0,109210.0,0.5273217]
[1751527236154,0.003,109220.0,109210.0,1.3644817]
[1751527236347,0.25189001,109220.0,109210.0,1.3644817]
[1751527237448,0.43494491,109220.0,109210.0,1.3644817]
[1751527237751,0.45134577,109220.0,109210.0,1.3644817]
[1751527238953,0.01940086,109220.0,109210.0,1.3644817]
[1751527239153,0.26829087,109220.0,109210.0,1.3644817]
[1751527239450,0.45134577,109220.0,109210.0,1.3644817]
[1751527242953,0.01940086,109220.0,109210.0,1.3644817]
[1751527243153,0.26829087,109220.0,109210.0,1.3644817]
[1751527243451,0.45134577,109220.0,109210.0,1.3644817]
[1751527248261,0.26829087,109220.0,109210.0,1.3644817]
[1751527248857,0.93474325,109230.0,109220.0,0.1830549]
[1751527249063,0.00013734,109230.0,109220.0,0.71223492]
[1751527249356,0.00013734,109230.0,109220.0,1.13733492]
[1751527250065,0.00313734,109230.0,109220.0,1.13833492]
[1751527250265,0.0314,109240.0,109230.0,0.1830382]
[1751527250564,0.28029001,109240.0,109230.0,1.36118821]
[1751527250864,0.46331141,109240.0,109230.0,1.36118821]
[1751527251065,0.28029001,109240.0,109230.0,1.36118821]
[1751527251463,0.28029001,109240.0,109230.0,1.72198821]
[1751527251860,0.28329001,109240.0,109230.0,1.72298821]
[1751527252061,0.25189001,109240.0,109230.0,1.72398821]
[1751527252261,0.25489001,109240.0,109230.0,1.72398821]
[1751527253175,0.006,109240.0,109230.0,1.72398821]
[1751527253369,0.25489001,109240.0,109230.0,1.79585248]
[1751527253869,0.25489001,109240.0,109230.0,1.72398821]
[1751527255270,0.25489001,109240.0,109230.0,1.7240482]
[1751527258576,0.25489001,109240.0,109230.0,1.79598639]
[1751527259680,0.006,109240.0,109230.0,1.79598639]
[1751527259977,0.25489001,109240.0,109230.0,1.79598639]
[1751527260877,0.006,109240.0,109230.0,1.79598639]
[1751527262078,0.006,109240.0,109230.0,1.54709638]
[1751527262276,0.006,109240.0,109230.0,1.79598639]
[1751527266780,0.006,109240.0,109230.0,2.0448764]
[1751527267181,0.006,109240.0,109230.0,1.79598639]
[1751527268774,0.006,109240.0,109230.0,1.85074458]
[1751527269073,0.006,109240.0,109230.0,1.86504885]
[1751527269886,0.006,109240.0,109230.0,1.85074458]
[1751527270088,0.31219001,109250.0,109240.0,0.1830215]
[1751527270284,0.31219001,109250.0,109240.0,0.52816742]
[1751527271284,0.31219001,109250.0,109240.0,0.27927741]
[1751527271685,0.31219001,109250.0,109240.0,0.52816742]
[1751527271885,0.49519471,109250.0,109240.0,0.51386314]
[1751527272087,0.49519471,109250.0,109240.0,0.52816742]
[1751527272884,0.49919471,109250.0,109240.0,0.52916742]
[1751527273089,0.49919471,109250.0,109240.0,0.58392896]
[1751527273790,0.31619001,109250.0,109240.0,0.58392896]
[1751527274089,0.49919471,109250.0,109240.0,0.58392896]
[1751527274292,0.2503047,109250.0,109240.0,0.61692896]
[1751527274494,0.0673,109250.0,109240.0,0.58042127]
[1751527274791,0.49919471,109250.0,109240.0,0.58042127]
[1751527275292,0.49919471,109250.0,109240.0,0.33159125]
[1751527275492,0.49919471,109250.0,109240.0,0.54751609]
[1751527275995,0.2503047,109250.0,109240.0,0.29862608]
[1751527276182,0.49919471,109250.0,109240.0,0.54751609]
[1751527276387,0.49919471,109250.0,109240.0,0.29862608]
[1751527276582,0.49919471,109250.0,109240.0,0.54751609]
[1751527276788,0.52969471,109250.0,109240.0,0.54751609]
[1751527277998,0.52969471,109250.0,109240.0,0.51711609]
[1751527278299,1.13938472,109250.0,109240.0,0.26822608]
[1751527278491,0.89049471,109250.0,109240.0,0.26822608]
[1751527278685,0.89049471,109250.0,109240.0,0.26722608]
[1751527278895,0.88949471,109250.0,109240.0,0.26922608]
[1751527280390,0.6386047,109250.0,109240.0,0.27022608]
[1751527280587,0.88749471,109250.0,109240.0,0.27031575]
[1751527281094,0.88749471,109250.0,109240.0,0.26931575]
[1751527281296,0.88749471,109250.0,109240.0,0.27031575]
[1751527284698,0.88749471,109250.0,109240.0,0.2886111]
[1751527288000,0.6386047,109250.0,109240.0,0.53750111]
[1751527288208,0.49619471,109250.0,109240.0,0.53750111]
[1751527288407,0.49619471,109250.0,109240.0,0.60150111]
[1751527289205,0.49619471,109250.0,109240.0,0.3526111]
[1751527289604,0.49619471,109250.0,109240.0,0.60150111]
[1751527290205,0.49619471,109250.0,109240.0,0.52831972]
[1751527290405,0.49619471,109250.0,109240.0,0.58322398]
[1751527291008,0.49619471,109250.0,109240.0,0.33433397]
[1751527291197,0.49619471,109250.0,109240.0,0.58322398]
[1751527292808,0.49519471,109250.0,109240.0,0.58022398]
[1751527293008,0.49619471,109250.0,109240.0,0.58322398]
[1751527294810,0.49619471,109250.0,109240.0,0.58422398]
[1751527295910,0.49619471,109250.0,109240.0,0.52931972]
[1751527296704,0.49619471,109250.0,109240.0,0.60250111]
[1751527299614,0.2473047,109250.0,109240.0,0.60250111]
[1751527299815,0.49619471,109250.0,109240.0,0.60250111]
[1751527300216,0.49619471,109250.0,109240.0,0.52931972]
[1751527301617,0.2473047,109250.0,109240.0,0.52931972]
[1751527302011,0.49619471,109250.0,109240.0,0.52931972]
[1751527302209,0.46399471,109250.0,109240.0,0.56061972]
[1751527304634,0.46399471,109250.0,109240.0,0.54631544]
[1751527304828,0.46399471,109250.0,109240.0,0.56061966]
[1751527305831,0.49609471,109250.0,109240.0,0.56061966]
[1751527308442,0.2472047,109250.0,109240.0,0.56061966]
[1751527308738,0.46399471,109250.0,109240.0,0.38491104]
[1751527308937,0.46399471,109250.0,109240.0,0.63380105]
[1751527308938,0.2151047,109250.0,109240.0,0.63380105]
[1751527309235,0.46399471,109250.0,109240.0,0.63380105]
[1751527309832,0.2151047,109250.0,109240.0,0.63380105]
[1751527310031,0.46399471,109250.0,109240.0,0.63380105]
[1751527311340,0.46399471,109250.0,109240.0,0.56061966]
[1751527313838,0.46399471,109250.0,109240.0,0.31172965]
[1751527314044,0.46399471,109250.0,109240.0,0.61553738]
[1751527315545,0.46399471,109250.0,109240.0,0.36664737]
[1751527315846,0.46399471,109250.0,109240.0,0.56061966]
[1751527316238,0.46399471,109250.0,109240.0,0.61553841]
[1751527316841,0.46399471,109250.0,109240.0,0.63380105]
[1751527317354,0.43289471,109250.0,109240.0,0.63380105]
[1751527319649,0.1840047,109250.0,109240.0,0.63380105]
[1751527319850,0.43289471,109250.0,109240.0,0.63380105]
[1751527321053,0.43289471,109250.0,109240.0,0.61949683]
[1751527321350,0.43289471,109250.0,109240.0,0.56061954]
[1751527322250,0.1840047,109250.0,109240.0,0.56061954]
[1751527322450,0.43289471,109250.0,109240.0,0.56061954]
[1751527322945,0.46489471,109250.0,109240.0,0.56061954]
[1751527323952,0.49499471,109250.0,109240.0,0.54631544]
[1751527324151,0.49499471,109250.0,109240.0,0.56061954]
[1751527326254,0.49499471,109250.0,109240.0,0.31172953]
[1751527326455,0.49499471,109250.0,109240.0,0.21642953]
[1751527326645,0.4542831,109280.0,109250.0,0.0457475]
[1751527326847,0.002,109280.0,109270.0,0.77226817]
[1751527327050,0.002,109280.0,109270.0,1.24054905]
[1751527327247,0.59304081,109300.0,109290.0,0.1829378]
[1751527327547,0.62574081,109300.0,109290.0,0.52321587]
[1751527327755,0.87463082,109300.0,109290.0,0.30672586]
[1751527327949,0.87463082,109300.0,109290.0,0.52321587]
[1751527328259,0.87463082,109300.0,109290.0,0.53393998]
[1751527328449,0.87463082,109300.0,109290.0,0.47910675]
[1751527328646,1.12352083,109300.0,109290.0,0.47910675]
[1751527329470,1.12352083,109300.0,109290.0,0.50647569]
[1751527329756,1.12352083,109300.0,109290.0,0.25758568]
[1751527329958,1.13052083,109300.0,109290.0,0.25858568]
[1751527330358,1.13052083,109300.0,109290.0,0.22203085]
[1751527330966,1.38441084,109300.0,109290.0,0.04009305]
[1751527331457,2.22045084,109300.0,109290.0,0.02936894]
[1751527331659,2.40344284,109300.0,109290.0,0.02936894]
[1751527332159,2.40344284,109300.0,109280.0,0.02734866]
[1751527332160,0.1829377,109290.0,109280.0,0.02734866]
[1751527332349,1.13711772,109290.0,109280.0,0.05169083]
[1751527332553,0.1829545,109280.0,109270.0,0.05136717]
[1751527332752,1.89411371,109280.0,109270.0,0.03655483]
[1751527332955,2.32602773,109280.0,109270.0,0.03655483]
[1751527333845,1.82825242,109280.0,109270.0,0.03655483]
[1751527334053,0.1829712,109270.0,109260.0,0.21954243]
[1751527334358,0.82496592,109270.0,109260.0,0.21954243]
[1751527334748,0.82496592,109270.0,109260.0,0.03655483]
[1751527335755,0.88766592,109270.0,109260.0,0.03655483]
[1751527336258,0.8969736,109270.0,109260.0,0.03655483]
[1751527336460,0.8979736,109270.0,109260.0,0.03655483]
[1751527336663,0.8999736,109270.0,109260.0,0.03755483]
[1751527338054,0.8999736,109270.0,109260.0,0.001]
[1751527338763,0.89066592,109270.0,109260.0,0.001]
[1751527340558,0.89066592,109270.0,109260.0,0.00105999]
[1751527344570,0.89066592,109270.0,109260.0,0.01473086]
[1751527346071,0.5783712,109270.0,109260.0,0.19771886]
[1751527346364,0.82726592,109270.0,109260.0,0.26161886]
[1751527346864,0.82726592,109270.0,109260.0,0.27804799]
[1751527347263,0.82726592,109270.0,109260.0,0.28877517]
[1751527350772,0.82726592,109270.0,109260.0,0.30242777]
[1751527351475,0.82726592,109270.0,109260.0,0.30242766]
[1751527352682,0.79566592,109270.0,109260.0,0.30242766]
[1751527352977,0.5467712,109270.0,109260.0,0.32532989]
[1751527353380,0.5467712,109270.0,109260.0,0.38016312]
[1751527354183,0.5467712,109270.0,109260.0,0.32532989]
[1751527357579,0.5467712,109270.0,109260.0,0.32532928]
[1751527358184,0.5467712,109270.0,109260.0,0.574224]
[1751527359077,0.5467712,109270.0,109260.0,0.32532928]
[1751527359472,0.5467712,109270.0,109260.0,0.38016251]
[1751527360087,0.79566592,109270.0,109260.0,0.32532928]
[1751527362583,0.79566592,109270.0,109260.0,0.32532919]
[1751527363485,0.79566592,109270.0,109260.0,0.34360759]
[1751527365387,0.82806592,109270.0,109260.0,0.34360759]
[1751527367491,0.86106592,109270.0,109260.0,0.06661959]
[1751527367691,0.89306592,109270.0,109260.0,0.04834295]
[1751527367891,0.89306592,109270.0,109260.0,0.06199239]
[1751527368680,0.89306592,109270.0,109260.0,0.24498059]
[1751527370289,0.89306592,109270.0,109260.0,0.06199239]
[1751527372696,0.89306592,109270.0,109260.0,0.24498059]
[1751527373296,0.89306592,109270.0,109260.0,0.06199239]
[1751527374392,1.72882592,109270.0,109260.0,0.06199239]
[1751527376401,1.72882592,109270.0,109260.0,0.10609925]
[1751527376900,1.72882592,109270.0,109260.0,0.05126602]
[1751527380000,1.72882592,109270.0,109260.0,0.06199355]
[1751527382600,1.72882592,109270.0,109260.0,0.02543696]
[1751527384203,1.72882592,109270.0,109260.0,0.01178752]
[1751527384603,1.72882592,109270.0,109260.0,0.0255603]
[1751527385301,1.72882592,109270.0,109260.0,0.06211689]
[1751527385905,1.14191846,109270.0,109260.0,0.06211689]
[1751527386104,1.97759846,109270.0,109260.0,0.24510519]
[1751527386305,1.97759846,109270.0,109260.0,0.09371689]
[1751527386711,1.97759846,109270.0,109260.0,0.27670519]
[1751527387206,1.14191846,109270.0,109260.0,0.27670519]
[1751527387509,1.69672483,109270.0,109260.0,0.27670519]
[1751527388304,1.69672483,109270.0,109260.0,0.26597766]
[1751527388608,1.69672483,109270.0,109260.0,0.08298936]
[1751527388907,1.69672483,109270.0,109260.0,0.26597766]
[1751527391411,1.69672483,109270.0,109260.0,0.32081089]
[1751527391710,1.69672483,109270.0,109260.0,0.17062259]
[1751527392113,1.69672483,109270.0,109260.0,0.11578936]
[1751527392312,1.69672483,109270.0,109260.0,0.30950527]